fUSD/lending_fUSD_20240116
["ID","MTS","AMOUNT","RATE_DAILY","PERIOD"]
[311833587,1705443069423,-500.0,0.0003315,5]
[311833588,1705443069433,-500.0,0.0003315,5]
[311833589,1705443069443,-502.30487466,0.0003315,5]
[311833590,1705443069452,-1296.38,0.0003315,5]
[311833591,1705443069462,-500.0,0.0003315,5]
[311833592,1705443069472,-920.89,0.0003315,5]
[311833593,1705443069481,-500.0,0.0003315,5]
[311833594,1705443069491,-911.77,0.0003315,5]
[311833595,1705443069501,-500.0,0.0003315,5]
[311833596,1705443069511,-500.0,0.0003315,5]
[311833597,1705443069521,-500.0,0.0003315,5]
[311833598,1705443069531,-500.0,0.0003315,5]
[311833599,1705443069542,-500.0,0.0003315,5]
[311833600,1705443069551,-1564.34,0.0003315,5]
[311833601,1705443069561,-500.0,0.0003315,5]
[311833602,1705443069572,-500.0,0.0003315,5]
[311833603,1705443069582,-500.0,0.0003315,5]
[311833604,1705443069592,-500.0,0.0003315,5]
[311833605,1705443069602,-500.0,0.0003315,5]
[311833606,1705443069613,-500.0,0.0003315,5]
[311833607,1705443069624,-500.0,0.0003315,5]
[311833608,1705443069646,-500.0,0.0003315,5]
[311833609,1705443069657,-1316.42,0.0003315,5]
[311833610,1705443069667,-805.07,0.0003315,5]
[311833611,1705443069676,-800.42,0.0003315,5]
[311833612,1705443069687,-500.0,0.0003315,5]
[311833613,1705443069697,-510.68346904,0.0003315,5]
[311833614,1705443069706,-551.54,0.0003315,5]
[311833615,1705443069716,-500.0,0.0003315,5]
[311833616,1705443069726,-501.66018695,0.0003315,5]
[311833617,1705443069736,-500.0,0.0003315,5]
[311833618,1705443069746,-1000.0,0.0003315,5]
[311833619,1705443069756,-884.78,0.0003315,5]
[311833620,1705443069766,-500.0,0.0003315,5]
[311833621,1705443069777,-500.0,0.0003315,5]
[311833622,1705443069786,-500.0,0.0003315,5]
[311833623,1705443069796,-1500.0,0.0003315,2]
[311833624,1705443069806,-500.0,0.0003315,5]
[311833625,1705443069816,-500.0,0.0003315,5]
[311833626,1705443069825,-500.0,0.0003315,5]
[311833627,1705443069835,-298.33885071,0.0003315,5]
[311833628,1705443069845,-500.0,0.0003315,5]
[311833629,1705443069855,-500.0,0.0003315,5]
[311833630,1705443069864,-500.0,0.0003315,5]
[311833631,1705443069874,-552.66,0.0003315,5]
[311833632,1705443069884,-873.6,0.0003315,5]
[311833633,1705443069894,-780.84,0.0003315,5]
[311833634,1705443069904,-500.0,0.0003315,5]
[311833635,1705443069913,-167.98664296,0.0003315,5]
[311833636,1705443069924,-655.56,0.0003315,5]
[311833637,1705443069933,-1228.73,0.0003315,5]
[311833638,1705443069943,-1255.01,0.0003315,5]
[311833639,1705443069953,-939.36,0.0003315,5]
[311833640,1705443069963,-2068.79,0.0003315,5]
[311833641,1705443069972,-523.87383433,0.0003315,5]
[311833642,1705443069982,-692.88,0.0003315,5]
[311833643,1705443069992,-500.0,0.0003315,5]
[311833644,1705443070002,-424.47165249,0.0003315,5]
[311833645,1705443070012,-500.0,0.0003315,5]
[311833646,1705443070022,-500.0,0.0003315,5]
[311833647,1705443070034,-500.0,0.0003315,5]
[311833648,1705443070043,-611.01,0.0003315,5]
[311833649,1705443070053,-1366.66,0.0003315,5]
[311833650,1705443070062,-500.0,0.0003315,5]
[311833651,1705443070071,-1576.83,0.0003315,5]
[311833652,1705443070081,-539.07,0.0003315,5]
[311833653,1705443070090,-698.72,0.0003315,5]
[311833654,1705443070100,-234.10944026,0.0003315,5]
[311833655,1705443070110,-1399.84,0.0003315,5]
[311833656,1705443070119,-977.33,0.0003315,5]
[311833657,1705443070129,-500.0,0.0003315,5]
[311833658,1705443070139,-500.0,0.0003315,5]
[311833659,1705443070149,-500.0,0.0003315,5]
[311833660,1705443070313,-500.0,0.0003315,5]
[311833661,1705443070323,-500.0,0.0003315,5]
[311833662,1705443070333,-500.0,0.0003315,5]
[311833663,1705443070342,-500.0,0.0003315,5]
[311833664,1705443070351,-500.0,0.0003315,5]
[311833665,1705443070360,-500.0,0.0003315,5]
[311833666,1705443070369,-500.0,0.0003315,5]
[311833667,1705443070378,-823.52,0.0003315,5]
[311833668,1705443070387,-500.0,0.0003315,5]
[311833669,1705443070396,-1584.13,0.0003315,5]
[311833670,1705443070405,-567.88,0.0003315,5]
[311833671,1705443070414,-580.58,0.0003315,5]
[311833672,1705443070423,-500.0,0.0003315,5]
[311833673,1705443070432,-500.0,0.0003315,5]
[311833674,1705443070441,-500.0,0.0003315,5]
[311833675,1705443070450,-500.0,0.0003315,5]
[311833676,1705443070459,-500.0,0.0003315,5]
[311833677,1705443070468,-845.66,0.0003315,5]
[311833678,1705443070478,-500.0,0.0003315,5]
[311833679,1705443070487,-511.56858253,0.0003315,5]
[311833680,1705443070496,-692.6,0.0003315,5]
[311833681,1705443070505,-500.0,0.0003315,5]
[311833682,1705443070514,-500.0,0.0003315,5]
[311833683,1705443070524,-500.0,0.0003315,5]
[311833684,1705443070533,-500.0,0.0003315,5]
[311833685,1705443070543,-500.0,0.0003315,5]
[311833686,1705443070553,-1123.2,0.0003315,5]
[311833687,1705443070562,-1946.58,0.0003315,5]
[311833688,1705443070573,-929.03,0.0003315,5]
[311833689,1705443070582,-2312.18,0.0003315,5]
[311833690,1705443070592,-500.0,0.0003315,5]
[311833691,1705443070602,-500.0,0.0003315,5]
[311833692,1705443070612,-500.0,0.0003315,5]
[311833693,1705443070621,-500.0,0.0003315,5]
[311833694,1705443070630,-500.0,0.0003315,5]
[311833695,1705443070639,-500.0,0.0003315,5]
[311833696,1705443070648,-500.0,0.0003315,5]
[311833697,1705443070658,-2100.74,0.0003315,5]
[311833698,1705443070667,-500.0,0.0003315,5]
[311833699,1705443070676,-182.9064655,0.0003315,5]
[311833700,1705443070685,-688.89,0.0003315,5]
[311833701,1705443070695,-500.0,0.0003315,5]
[311833702,1705443070705,-500.0,0.0003315,5]
[311833703,1705443070714,-500.0,0.0003315,5]
[311833704,1705443070723,-544.47454863,0.0003315,5]
[311833705,1705443070733,-500.0,0.0003315,5]
[311833706,1705443070742,-500.0,0.0003315,5]
[311833707,1705443070752,-505.95404929,0.0003315,5]
[311833708,1705443070762,-500.0,0.0003315,5]
[311833709,1705443070771,-500.0,0.0003315,5]
[311833710,1705443070782,-500.0,0.0003315,5]
[311833711,1705443070792,-500.0,0.0003315,5]
[311833712,1705443070802,-500.0,0.0003315,5]
[311833713,1705443070811,-834.5,0.0003315,5]
[311833714,1705443070820,-500.0,0.0003315,5]
[311833715,1705443070830,-500.0,0.0003315,5]
[311833716,1705443070839,-500.0,0.0003315,5]
[311833717,1705443070848,-500.0,0.0003315,5]
[311833718,1705443070858,-2754.05,0.0003315,5]
[311833719,1705443070867,-736.36,0.0003315,5]
[311833720,1705443070876,-500.0,0.0003315,5]
[311833721,1705443070885,-500.0,0.0003315,5]
[311833722,1705443070895,-500.0,0.0003315,5]
[311833723,1705443070906,-500.0,0.0003315,5]
[311833724,1705443070915,-697.94,0.0003315,5]
[311833725,1705443070925,-618.01,0.0003315,5]
[311833726,1705443070935,-500.0,0.0003315,5]
[311833727,1705443070944,-500.0,0.0003315,5]
[311833728,1705443070953,-500.0,0.0003315,5]
[311833729,1705443070962,-500.0,0.0003315,5]
[311833730,1705443070972,-2573.24,0.0003315,5]
[311833731,1705443070982,-500.0,0.0003315,5]
[311833732,1705443070992,-1033.7,0.0003315,5]
[311833733,1705443071003,-500.0,0.0003315,5]
[311833734,1705443071013,-500.0,0.0003315,5]
[311833735,1705443071022,-500.0,0.0003315,5]
[311833736,1705443071033,-500.0,0.0003315,5]
[311833737,1705443071043,-500.0,0.0003315,5]
[311833738,1705443071053,-1240.47,0.0003315,5]
[311833739,1705443071062,-1535.69,0.0003315,5]
[311833740,1705443071072,-598.18,0.0003315,5]
[311833741,1705443071083,-500.0,0.0003315,5]
[311833742,1705443071097,-500.0,0.0003315,5]
[311833743,1705443071108,-500.0,0.0003315,5]
[311833744,1705443071118,-500.0,0.0003315,5]
[311833745,1705443071129,-561.13,0.0003315,5]
[311833746,1705443071140,-641.73,0.0003315,5]
[311833747,1705443071151,-895.0,0.0003315,5]
[311833748,1705443071161,-1946.09,0.0003315,5]
[311833749,1705443071172,-885.32,0.0003315,5]
[311833750,1705443071183,-500.0,0.0003315,5]
[311833751,1705443071195,-979.06,0.0003315,5]
[311833752,1705443071207,-537.49,0.0003315,5]
[311833753,1705443071218,-500.0,0.0003315,5]
[311833754,1705443071229,-508.30705957,0.0003315,5]
[311833755,1705443071240,-500.0,0.0003315,5]
[311833756,1705443071250,-500.0,0.0003315,5]
[311833757,1705443071261,-500.0,0.0003315,5]
[311833758,1705443071272,-552.25,0.0003315,5]
[311833759,1705443071284,-500.0,0.0003315,5]
[311833760,1705443071294,-501.82889378,0.0003315,5]
[311833761,1705443071305,-508.9259893,0.0003315,5]
[311833762,1705443071317,-1141.31,0.0003315,5]
[311833763,1705443071328,-500.0,0.0003315,5]
[311833764,1705443071339,-500.0,0.0003315,5]
[311833765,1705443071350,-1195.73,0.0003315,5]
[311833766,1705443071361,-500.0,0.0003315,5]
[311833767,1705443071372,-500.0,0.0003315,5]
[311833768,1705443071382,-500.0,0.0003315,5]
[311833769,1705443071393,-517.17223665,0.0003315,5]
[311833770,1705443071404,-777.9,0.0003315,5]
[311833771,1705443071414,-500.0,0.0003315,5]
[311833772,1705443071425,-186.25759092,0.0003315,5]
[311833773,1705443071436,-1469.74,0.0003315,5]
[311833774,1705443071446,-500.0,0.0003315,5]
[311833775,1705443071457,-1486.14,0.0003315,5]
[311833776,1705443071468,-500.0,0.0003315,5]
[311833777,1705443071479,-1372.91,0.0003315,5]
[311833778,1705443071490,-358.18,0.0003315,5]
[311833779,1705443071500,-674.9,0.0003315,5]
[311833780,1705443071511,-500.0,0.0003315,5]
[311833781,1705443071522,-1058.87,0.0003315,5]
[311833782,1705443071533,-500.0,0.0003315,5]
[311833783,1705443071544,-500.0,0.0003315,5]
[311833784,1705443071555,-1448.48,0.0003315,5]
[311833785,1705443071565,-1666.07,0.0003315,5]
[311833786,1705443071576,-595.74,0.0003315,5]
[311833787,1705443071586,-645.28,0.0003315,5]
[311833788,1705443071597,-500.0,0.0003315,5]
[311833789,1705443071608,-1164.28,0.0003315,5]
[311833790,1705443071618,-500.0,0.0003315,5]
[311833791,1705443071629,-1175.3,0.0003315,5]
[311833792,1705443071639,-500.0,0.0003315,5]
[311833793,1705443071649,-500.0,0.0003315,5]
[311833794,1705443071661,-700.11,0.0003315,5]
[311833795,1705443071671,-500.0,0.0003315,5]
[311833796,1705443071681,-500.0,0.0003315,5]
[311833797,1705443071691,-500.0,0.0003315,5]
[311833798,1705443071702,-925.17,0.0003315,5]
[311833799,1705443071712,-500.0,0.0003315,5]
[311833800,1705443071723,-1000.0,0.0003315,7]
[311833801,1705443071733,-500.0,0.0003315,5]
[311833802,1705443071743,-551.56,0.0003315,5]
[311833803,1705443071754,-797.17,0.0003315,5]
[311833804,1705443071765,-500.0,0.0003315,5]
[311833805,1705443071776,-500.0,0.0003315,5]
[311833806,1705443071787,-2484.89,0.0003315,5]
[311833807,1705443071797,-1490.4,0.0003315,5]
[311833808,1705443071808,-1223.25,0.0003315,5]
[311833809,1705443071818,-500.0,0.0003315,5]
[311833810,1705443071829,-1184.66,0.0003315,5]
[311833811,1705443071840,-546.10305154,0.0003315,5]
[311833812,1705443071850,-500.0,0.0003315,5]
[311833813,1705443071861,-1389.54,0.0003315,5]
[311833814,1705443071872,-1632.85,0.0003315,5]
[311833815,1705443071883,-1824.97,0.0003315,5]
[311833816,1705443071894,-500.0,0.0003315,5]
[311833817,1705443071904,-1216.77,0.0003315,5]
[311833818,1705443071915,-500.0,0.0003315,5]
[311833819,1705443071926,-1335.13,0.0003315,5]
[311833820,1705443071937,-500.0,0.0003315,5]
[311833821,1705443071948,-500.0,0.0003315,5]
[311833822,1705443071959,-500.0,0.0003315,5]
[311833823,1705443071970,-500.0,0.0003315,5]
[311833824,1705443071981,-1305.56,0.0003315,5]
[311833825,1705443071992,-1059.88,0.0003315,5]
[311833826,1705443072003,-683.6,0.0003315,5]
[311833827,1705443072013,-500.0,0.0003315,5]
[311833828,1705443072024,-500.0,0.0003315,5]
[311833829,1705443072035,-500.0,0.0003315,5]
[311833830,1705443072045,-500.0,0.0003315,5]
[311833831,1705443072056,-500.0,0.0003315,5]
[311833832,1705443072067,-1434.65,0.0003315,5]
[311833833,1705443072077,-500.0,0.0003315,5]
[311833834,1705443072087,-500.0,0.0003315,5]
[311833835,1705443072098,-500.0,0.0003315,5]
[311833836,1705443072108,-1464.27,0.0003315,5]
[311833837,1705443072123,-500.0,0.0003315,5]
[311833838,1705443072143,-1694.12,0.0003315,5]
[311833839,1705443072159,-1013.42,0.0003315,5]
[311833840,1705443072176,-500.0,0.0003315,5]
[311833841,1705443072195,-379.45489863,0.0003315,5]
[311833842,1705443072210,-999.11,0.0003315,5]
[311833843,1705443072226,-500.0,0.0003315,5]
[311833844,1705443072243,-1114.89,0.0003315,5]
[311833845,1705443072259,-668.32,0.0003315,5]
[311833846,1705443072275,-925.07,0.0003315,5]
[311833847,1705443072294,-500.0,0.0003315,5]
[311833848,1705443072308,-631.5,0.0003315,5]
[311833849,1705443072325,-500.0,0.0003315,5]
[311833850,1705443072343,-614.43,0.0003315,5]
[311833851,1705443072359,-500.0,0.0003315,5]
[311833852,1705443072371,-1071.19,0.0003315,5]
[311833853,1705443072386,-500.0,0.0003315,5]
[311833854,1705443072402,-500.0,0.0003315,5]
[311833855,1705443072414,-500.0,0.0003315,5]
[311833856,1705443072428,-1185.59,0.0003315,5]
[311833857,1705443072442,-500.0,0.0003315,5]
[311833858,1705443072458,-881.32,0.0003315,5]
[311833859,1705443072473,-500.0,0.0003315,5]
[311833860,1705443072487,-500.0,0.0003315,5]
[311833861,1705443072502,-308.02701993,0.0003315,5]
[311833862,1705443072522,-898.71,0.0003315,5]
[311833863,1705443072541,-500.0,0.0003315,5]
[311833864,1705443072562,-784.09,0.0003315,5]
[311833865,1705443072579,-1314.09,0.0003315,5]
[311833866,1705443072598,-500.0,0.0003315,5]
[311833867,1705443072614,-500.0,0.0003315,5]
[311833868,1705443072631,-500.0,0.0003315,5]
[311833869,1705443072648,-500.0,0.0003315,5]
[311833870,1705443072664,-1867.12,0.0003315,5]
[311833871,1705443072680,-500.0,0.0003315,5]
[311833872,1705443072696,-734.59,0.0003315,5]
[311833873,1705443072710,-500.0,0.0003315,5]
[311833874,1705443072733,-510.6,0.0003315,5]
[311833875,1705443072747,-1392.17,0.0003315,5]
[311833876,1705443072762,-500.0,0.0003315,5]
[311833877,1705443072778,-500.0,0.0003315,5]
[311833878,1705443072792,-852.08,0.0003315,5]
[311833879,1705443072807,-1674.58,0.0003315,5]
[311833880,1705443072821,-2154.24,0.0003315,5]
[311833881,1705443072835,-500.0,0.0003315,5]
[311833882,1705443072849,-500.0,0.0003315,5]
[311833883,1705443072864,-989.57,0.0003315,5]
[311833884,1705443072878,-500.0,0.0003315,5]
[311833885,1705443072893,-500.0,0.0003315,5]
[311833886,1705443072907,-500.0,0.0003315,5]
[311833887,1705443072921,-872.87,0.0003315,5]
[311833888,1705443072935,-500.0,0.0003315,5]
[311833889,1705443072949,-2137.84,0.0003315,5]
[311833890,1705443072963,-562.57793379,0.0003315,5]
[311833891,1705443072977,-1119.46,0.0003315,5]
[311833892,1705443072992,-500.0,0.0003315,5]
[311833893,1705443073005,-2169.02,0.0003315,5]
[311833894,1705443073019,-943.0,0.0003315,5]
[311833895,1705443073033,-500.0,0.0003315,5]
[311833896,1705443073047,-903.67,0.0003315,5]
[311833897,1705443073061,-500.0,0.0003315,5]
[311833898,1705443073074,-500.0,0.0003315,5]
[311833899,1705443073088,-500.0,0.0003315,5]
[311833900,1705443073101,-500.0,0.0003315,5]
[311833901,1705443073115,-1041.62,0.0003315,5]
[311833902,1705443073129,-500.0,0.0003315,5]
[311833903,1705443073143,-500.0,0.0003315,5]
[311833904,1705443073156,-500.0,0.0003315,5]
[311833905,1705443073170,-506.01595554,0.0003315,5]
[311833906,1705443073185,-584.6,0.0003315,5]
[311833907,1705443073202,-1137.71,0.0003315,5]
[311833908,1705443073216,-505.71190594,0.0003315,5]
[311833909,1705443073231,-500.0,0.0003315,5]
[311833910,1705443073245,-514.20170646,0.0003315,5]
[311833911,1705443073259,-526.57,0.0003315,5]
[311833912,1705443073273,-500.0,0.0003315,5]
[311833913,1705443073287,-923.99,0.0003315,5]
[311833914,1705443073302,-803.98,0.0003315,5]
[311833915,1705443073315,-500.0,0.0003315,5]
[311833916,1705443073328,-500.0,0.0003315,5]
[311833917,1705443073342,-614.85443863,0.0003315,5]
[311833918,1705443073356,-713.49,0.0003315,5]
[311833919,1705443073369,-500.0,0.0003315,5]
[311833920,1705443073382,-696.83,0.0003315,5]
[311833921,1705443073396,-500.0,0.0003315,5]
[311833922,1705443073409,-500.0,0.0003315,5]
[311833923,1705443073423,-500.0,0.0003315,5]
[311833924,1705443073436,-693.32,0.0003315,5]
[311833925,1705443073450,-500.0,0.0003315,5]
[311833926,1705443073464,-500.0,0.0003315,5]
[311833927,1705443073478,-1814.11,0.0003315,5]
[311833928,1705443073491,-500.0,0.0003315,5]
[311833929,1705443073504,-500.0,0.0003315,5]
[311833930,1705443073519,-500.0,0.0003315,5]
[311833931,1705443073533,-500.0,0.0003315,5]
[311833932,1705443073546,-587.25360532,0.0003315,5]
[311833933,1705443073559,-309.9974842,0.0003315,5]
[311833934,1705443073572,-500.0,0.0003315,5]
[311833935,1705443073585,-663.87,0.0003315,5]
[311833936,1705443073598,-1511.2,0.0003315,5]
[311833937,1705443073612,-1710.73,0.0003315,5]
[311833938,1705443073626,-500.0,0.0003315,5]
[311833939,1705443073639,-941.1,0.0003315,5]
[311833940,1705443073652,-1437.14,0.0003315,5]
[311833941,1705443073666,-1191.46,0.0003315,5]
[311833942,1705443073679,-500.0,0.0003315,5]
[311833943,1705443073693,-500.0,0.0003315,5]
[311833944,1705443073706,-1416.72,0.0003315,5]
[311833945,1705443073724,-500.0,0.0003315,5]
[311833946,1705443073747,-500.0,0.0003315,5]
[311833947,1705443073762,-500.0,0.0003315,5]
[311833948,1705443073777,-500.0,0.0003315,5]
[311833949,1705443073792,-500.0,0.0003315,5]
[311833950,1705443073807,-753.69,0.0003315,5]
[311833951,1705443073820,-1159.58,0.0003315,5]
[311833952,1705443073833,-500.0,0.0003315,5]
[311833953,1705443073847,-500.0,0.0003315,5]
[311833954,1705443073861,-1374.27,0.0003315,5]
[311833955,1705443073874,-588.39,0.0003315,5]
[311833956,1705443073887,-500.0,0.0003315,5]
[311833957,1705443073907,-500.0,0.0003315,5]
[311833958,1705443073920,-500.0,0.0003315,5]
[311833959,1705443073933,-551.39,0.0003315,5]
[311833960,1705443073946,-500.0,0.0003315,5]
[311833961,1705443073960,-1007.34,0.0003315,5]
[311833962,1705443073974,-500.0,0.0003315,5]
[311833963,1705443073987,-500.0,0.0003315,5]
[311833964,1705443074001,-500.0,0.0003315,5]
[311833965,1705443074014,-500.0,0.0003315,5]
[311833966,1705443074028,-500.0,0.0003315,5]
[311833967,1705443074041,-516.07413667,0.0003315,5]
[311833968,1705443074054,-500.0,0.0003315,5]
[311833969,1705443074067,-500.0,0.0003315,5]
[311833970,1705443074082,-500.0,0.0003315,5]
[311833971,1705443074096,-500.0,0.0003315,5]
[311833972,1705443074110,-500.0,0.0003315,5]
[311833973,1705443074124,-968.06,0.0003315,5]
[311833974,1705443074138,-500.0,0.0003315,5]
[311833975,1705443074151,-1360.14,0.0003315,5]
[311833976,1705443074165,-1139.55,0.0003315,5]
[311833977,1705443074177,-500.0,0.0003315,5]
[311833978,1705443074187,-500.0,0.0003315,5]
[311833979,1705443074200,-2230.73,0.0003315,5]
[311833980,1705443074210,-1263.87,0.0003315,5]
[311833981,1705443074219,-500.0,0.0003315,5]
[311833982,1705443074229,-1169.59,0.0003315,5]
[311833983,1705443074238,-500.0,0.0003315,5]
[311833984,1705443074248,-500.0,0.0003315,5]
[311833985,1705443074257,-500.0,0.0003315,2]
[311833986,1705443074266,-500.0,0.0003315,5]
[311833987,1705443074276,-1044.13,0.0003315,5]
[311833988,1705443074286,-500.0,0.0003315,5]
[311833989,1705443074296,-500.0,0.0003315,5]
[311833990,1705443074306,-1079.83,0.0003315,5]
[311833991,1705443074315,-1500.29,0.0003315,5]
[311833992,1705443074325,-500.0,0.0003315,5]
[311833993,1705443074334,-500.0,0.0003315,5]
[311833994,1705443074343,-500.0,0.0003315,5]
[311833995,1705443074352,-1903.59,0.0003315,5]
[311833996,1705443074361,-500.0,0.0003315,5]
[311833997,1705443074371,-1001.22,0.0003315,5]
[311833998,1705443074380,-500.0,0.0003315,5]
[311833999,1705443074389,-500.0,0.0003315,5]
[311834000,1705443074398,-500.0,0.0003315,5]
[311834001,1705443074407,-586.74,0.0003315,5]
[311834002,1705443074416,-1126.12,0.0003315,2]
[311834003,1705443074426,-500.0,0.0003315,5]
[311834004,1705443074435,-1329.97,0.0003315,5]
[311834005,1705443074444,-500.0,0.0003315,5]
[311834006,1705443074453,-500.0,0.0003315,5]
[311834007,1705443074462,-722.54,0.0003315,5]
[311834008,1705443074472,-976.02,0.0003315,5]
[311834009,1705443074482,-500.0,0.0003315,5]
[311834010,1705443075025,-500.0,0.0003315,5]
[311834011,1705443075059,-500.0,0.0003315,5]
[311834012,1705443075081,-1464.71,0.0003315,5]
[311834013,1705443075091,-952.21,0.0003315,5]
[311834014,1705443075101,-500.0,0.0003315,5]
[311834015,1705443075110,-500.0,0.0003315,5]
[311834016,1705443075120,-500.0,0.0003315,5]
[311834017,1705443075130,-500.0,0.0003315,5]
[311834018,1705443075139,-500.0,0.0003315,5]
[311834019,1705443075149,-500.0,0.0003315,5]
[311834020,1705443075158,-500.0,0.0003315,5]
[311834021,1705443075169,-500.0,0.0003315,5]
[311834022,1705443075178,-611.35,0.0003315,5]
[311834023,1705443075190,-500.0,0.0003315,5]
[311834024,1705443075200,-500.0,0.0003315,5]
[311834025,1705443075209,-1346.39,0.0003315,5]
[311834026,1705443075219,-1223.42,0.0003315,5]
[311834027,1705443075229,-995.36,0.0003315,5]
[311834028,1705443075238,-977.66,0.0003315,5]
[311834029,1705443075247,-500.0,0.0003315,5]
[311834030,1705443075257,-500.0,0.0003315,5]
[311834031,1705443075266,-505.47018032,0.0003315,5]
[311834032,1705443075275,-709.53,0.0003315,5]
[311834033,1705443075284,-500.0,0.0003315,5]
[311834034,1705443075293,-500.0,0.0003315,5]
[311834035,1705443075302,-500.0,0.0003315,5]
[311834036,1705443075311,-767.47,0.0003315,5]
[311834037,1705443075320,-500.0,0.0003315,5]
[311834038,1705443075329,-1195.52,0.0003315,5]
[311834039,1705443075338,-644.62,0.0003315,5]
[311834040,1705443075347,-809.45,0.0003315,5]
[311834041,1705443075356,-935.08,0.0003315,5]
[311834042,1705443075366,-500.0,0.0003315,5]
[311834043,1705443075375,-500.0,0.0003315,5]
[311834044,1705443075384,-500.0,0.0003315,5]
[311834045,1705443075393,-500.0,0.0003315,5]
[311834046,1705443075403,-1121.81,0.0003315,7]
[311834047,1705443075412,-832.4,0.0003315,5]
[311834048,1705443075421,-500.0,0.0003315,5]
[311834049,1705443075430,-500.0,0.0003315,5]
[311834050,1705443075439,-500.0,0.0003315,5]
[311834051,1705443075448,-932.98,0.0003315,5]
[311834052,1705443075457,-500.0,0.0003315,5]
[311834053,1705443075466,-500.0,0.0003315,5]
[311834054,1705443075475,-500.0,0.0003315,5]
[311834055,1705443075484,-1310.54,0.0003315,7]
[311834056,1705443075493,-1052.2,0.0003315,5]
[311834057,1705443075503,-500.0,0.0003315,5]
[311834058,1705443075511,-500.0,0.0003315,5]
[311834059,1705443075520,-1331.5,0.0003315,5]
[311834060,1705443075530,-633.55,0.0003315,5]
[311834061,1705443075538,-595.11,0.0003315,5]
[311834062,1705443075548,-500.0,0.0003315,5]
[311834063,1705443075557,-2331.21,0.0003315,5]
[311834064,1705443075566,-699.63,0.0003315,5]
[311834065,1705443075576,-641.11,0.0003315,5]
[311834066,1705443075584,-500.0,0.0003315,5]
[311834067,1705443075593,-500.0,0.0003315,5]
[311834068,1705443075603,-754.79,0.0003315,5]
[311834069,1705443075612,-500.0,0.0003315,5]
[311834070,1705443075621,-1339.43,0.0003315,5]
[311834071,1705443075630,-670.04,0.0003315,5]
[311834072,1705443075640,-1284.95,0.0003315,5]
[311834073,1705443075649,-505.65514607,0.0003315,5]
[311834074,1705443075658,-500.0,0.0003315,5]
[311834075,1705443075667,-500.0,0.0003315,5]
[311834076,1705443075676,-1154.49,0.0003315,5]
[311834077,1705443075686,-880.37,0.0003315,5]
[311834078,1705443075695,-500.0,0.0003315,5]
[311834079,1705443075704,-500.0,0.0003315,5]
[311834080,1705443075713,-480.01374201,0.0003315,5]
[311834081,1705443075722,-596.84,0.0003315,5]
[311834082,1705443075731,-822.7,0.0003315,5]
[311834083,1705443075740,-500.0,0.0003315,5]
[311834084,1705443075749,-500.0,0.0003315,5]
[311834085,1705443075759,-500.0,0.0003315,5]
[311834086,1705443075768,-500.0,0.0003315,5]